Workbook

Sheet Switchgrass Establishment Bdgt
A2: You can change the cells highlighted in yellow to match your specific operation. Columns E & F Autopopulate based on these numbers
A4: Switchgrass Production Budget - Establishment Year
A8: Establishment | C8: Unit | D8: Quantity | E8: Price | F8: $/acre
A9: Inputs
A10: Land Rent1 | C10: acre | D10: 1 | E10: 0 | F10: =D10*E10 -> 0
A11: Seed | C11: lb./PLS | D11: 6.5 | E11: 12 | F11: =D11*E11 -> 78
A12: Nitrogen2 | B12: 46-0-0 Urea | C12: lbs | D12: 0 | E12: 343 | F12: =IF(D12>0,(E12/(2000*0.46))*(D12-((D13/0.46)*0.18)),0) -> 0
A13: Phosphorous2 | B13: 18-46-0 DAP | C13: lbs | D13: 40 | E13: 400 | F13: =(E13/(2000*0.46))*D13 -> 17.39130435
A14: Potassium2 | B14: 0-0-60 Potash | C14: lbs | D14: 80 | E14: 378 | F14: =(E14/(2000*0.6))*D14 -> 25.2
A15: Lime3 | C15: ton | D15: 1 | E15: 30 | F15: =D15*E15 -> 30
A16: Herbicide | B16: Late Fall/Early Spring | C16: qt. | D16: 1 | E16: 4.88 | F16: 4.88
A17: Herbicide | B17: Preplant | C17: qt. | D17: 1 | E17: 4.88 | F17: 4.88
E19: Subtotal | F19: =SUM(F10:F17) -> 160.3513043
A20: Pre Harvest Equipment Operations4
A21: Fertilizer Application | D21: 1 | E21: 8 | F21: =D21*E21 -> 8
A22: Herbicide Application | D22: 2 | E22: 8.5 | F22: =D22*E22 -> 17
A23: Planting | D23: 1 | E23: 24 | F23: 24
A24: Rotary Mowing5 | D24: 2 | E24: 6.12 | F24: 12.24
E26: Subtotal | F26: =SUM(F21:F24) -> 61.24
E29: Total Establishment Cost | F29: =SUM(F19,F26) -> 221.5913043
A31: Footnotes
A32: 1) Add in your land rent or property costs on a per acre basis
A33: 2) Enter price per ton from your supplier. For quantity, follow recommendations from soil test and adjust accordingly. Nitrogen is not recommended in establishment year.
A35: 3) Switchgrass is most productive in soil PH ranging from 6.0-8.0; Follow recommendations from soil test and adjust accordingly.
A36: 4) Equipment Operation expenses are based on custom crew rates. If doing this work yourself, rates could be different.
A37: 5) Used after emergence in establishment year to control broadleaf weeds. Care must be taken to not mow lower than the height of maturing switchgrass.
A40: Copyright 2020
A41: Genera Inc. | F41: generainc.com/farmers

Sheet Switchgrass Production Budget
A2: You can change the cells highlighted in yellow to match your specific operation. Columns E & F Autopopulate based on these numbers
A4: Switchgrass Production Budget - After Establishment Year
A6: Yield (BDT*/Acre) | B6: 6
A8: Production | C8: Unit | D8: Quantity | E8: Price | F8: $/acre | G8: $/BDT*
A9: Annual Maintenance
A10: Inputs
A11: Land1 | C11: acre | D11: 1 | E11: 0 | F11: =D11*E11 -> 0 | G11: =F11/$B$6 -> 0
A12: Nitrogen2 | B12: 46-0-0 Urea | C12: lbs | D12: 60 | E12: 343 | F12: =((E12/(2000*0.46))*D12) -> 22.36956522 | G12: =F12/$B$6 -> 3.72826087
A13: Phosphorous2 | B13: 18-46-0 DAP | C13: lbs | D13: 40 | E13: 400 | F13: =((E13/(2000*0.46))*D13)*0.3333 -> 5.796521739 | G13: 0.9660869565
A14: Potassium2 | B14: 0-0-60 Potash | C14: lbs | D14: 80 | E14: 378 | F14: =((E14/(2000*0.6))*D14)*0.3333 -> 8.39916 | G14: 1.39986
A15: Lime3 | C15: ton | D15: 1 | E15: 30 | F15: =(D15*E15)*0.25 -> 7.5 | G15: 1.25
A16: Herbicide - Broadleaf Control4 | B16: 2,4 - D | C16: pt | D16: 2 | E16: 2.22 | F16: =D16*E16 -> 4.44 | G16: 0.74
E18: Subtotal | F18: =SUM(F9:F16) -> 48.50524696 | G18: =F18/$B$6 -> 8.084207826
A20: Pre Harvest Equipment Operations5
A21: Fertilizer Application | D21: 1 | E21: 8 | F21: =D21*E21 -> 8 | G21: =F21/$B$6 -> 1.333333333
A22: Herbicide Application | D22: 1 | E22: 8.5 | F22: =D22*E22 -> 8.5 | G22: =F22/$B$6 -> 1.416666667
E24: Subtotal | F24: =SUM(F21:F22) -> 16.5 | G24: =SUM(G21:G22) -> 2.75
A26: Harvest Equipment Operations5
A27: Swathing | F27: 22.31 | G27: =F27/$B$6 -> 3.718333333
A28: Baling | F28: 99.39 | G28: =F28/$B$6 -> 16.565
A29: Bale Staging | F29: 44.87 | G29: 7.478333333
E31: Subtotal | F31: =SUM(F27:F29) -> 166.57 | G31: =SUM(G27:G29) -> 27.76166667
E33: Total Production Cost | F33: =SUM(F18,F24,F31) -> 231.575247 | G33: =SUM(G18,G24,G31) -> 38.59587449
A35: Footnotes
A36: *BDT = Bone Dry Ton
A37: 1) Add in your land rent or property costs on a per acre basis
A38: 2) Enter price per ton from your supplier. P & K are not typically recommended unless the soil test indicates "Low". Values here represent applying N every year and P & K every third year. Follow recommendations from soil test and adjust accordingly.
A40: 3) Assumed application once every four years at 1 ton per acre. Application costs included.
A41: 4)If needed. Do not apply before switchgrass reaches the 5 leaf stage.
A42: 5) Equipment Operation expenses are based on custom crew rates. If doing this work yourself, rates could be different.
A44: Copyright 2020
A45: Genera Inc. | G45: generainc.com/farmers

Sheet Cost Analysis
A2: The tables below summarize a 10-year production cycle for both switchgrass and non-irrigated, no-till soybeans in Southeastern Tennessee counties. This comparison of annual and cumulative profits is not meant to be a competitive comparison between the two crops. We’re simply showing a comparison to soybeans since many growers in the region are familiar with that crop, especially the costs of production, the risks involved, and the yields. The primary purpose of this comparison is to show that switchgrass, on the right land, can produce significant profit to the grower, just like soybeans on the right land can as well. In fact, switchgrass production returns are more consistent and have less annual volatility due to its drought resistance and the set pricing a grower receives from Genera. You can change the values in the yellow cells to reflect your operation’s details for a personalized analysis.
A12: Switchgrass Production Cost Analysis per Acre by Year
A13: Year | B13: 1 | C13: 2 | D13: 3 | E13: 4 | F13: 5 | G13: 6 | H13: 7 | I13: 8 | J13: 9 | K13: 10
A14: Yield (BDT)1 | B14: 2 | C14: 4 | D14: 6 | E14: 6 | F14: 6 | G14: 6 | H14: 6 | I14: 6 | J14: 6 | K14: 6
A16: Switchgrass Production, ($65/BDT)
A17: Expenses2 | B17: =-'Switchgrass Establishment Bdgt'!F29-'Switchgrass Production Budget'!F27-((SUM('Switchgrass Production Budget'!F28:F29)*(B14/6))) -> -291.987971 | C17: =-'Switchgrass Production Budget'!F18-'Switchgrass Production Budget'!F24-'Switchgrass Production Budget'!F27-((SUM('Switchgrass Production Budget'!F28:F29)*(C14/6))) -> -183.4885803 | D17: =-'Switchgrass Production Budget'!$F$33 -> -231.575247 | E17: =-'Switchgrass Production Budget'!$F$33 -> -231.575247 | F17: =-'Switchgrass Production Budget'!$F$33 -> -231.575247 | G17: =-'Switchgrass Production Budget'!$F$33 -> -231.575247 | H17: =-'Switchgrass Production Budget'!$F$33 -> -231.575247 | I17: =-'Switchgrass Production Budget'!$F$33 -> -231.575247 | J17: =-'Switchgrass Production Budget'!$F$33 -> -231.575247 | K17: =-'Switchgrass Production Budget'!$F$33 -> -231.575247
A19: Revenue - Yearly | B19: =B14*65 -> 130 | C19: 260 | D19: 390 | E19: 390 | F19: 390 | G19: 390 | H19: 390 | I19: 390 | J19: 390 | K19: 390
A20: Profit - Yearly | B20: =B19+B17 -> -161.987971 | C20: 76.51141971 | D20: 158.424753 | E20: 158.424753 | F20: 158.424753 | G20: 158.424753 | H20: 158.424753 | I20: 158.424753 | J20: 158.424753 | K20: 158.424753
A21: Profit - Acumulating | B21: =B19+B17 -> -161.987971 | C21: =C19+C17+B21 -> -85.4765513 | D21: 72.94820174 | E21: 231.3729548 | F21: 389.7977078 | G21: 548.2224609 | H21: 706.6472139 | I21: 865.071967 | J21: 1023.49672 | K21: 1181.921473
A23: 1) Expected yield for lowland varieties of switchgrass in Southeastern Tennessee.
A24: 2) Expenses are generated from values entered on the previous two tabs.
A26: How does Switchgrass Production Compare to Other on Farm Enterprises?
A28: Soybeans, No-Till, Non-Irrigated
A30: Year | B30: 2010 | C30: 2011 | D30: 2012 | E30: 2013 | F30: 2014 | G30: 2015 | H30: 2016 | I30: 2017 | J30: 2018 | K30: 2019
A31: Yield (bushels)3 | B31: 31.5 | C31: 29.2 | D31: 45.6 | E31: 45.6 | F31: 53.5 | G31: 52.5 | H31: 32.9 | I31: 44.4 | J31: 52 | K31: 47
A32: Price Received (per bushel)3 | B32: 11.1 | C32: 12.2 | D32: 14.6 | E32: 13 | F32: 10.6 | G32: 9.29 | H32: 9.78 | I32: 9.7 | J32: 8.75 | K32: 8.85
A34: Expenses4 | B34: -325.52 | C34: -306.4 | D34: -331.07 | E34: -389.2 | F34: -410.1 | G34: -434.04 | H34: -404.98 | I34: -388 | J34: -365.42 | K34: -388.86
A36: Revenue - Yearly | B36: =B31*B32 -> 349.65 | C36: =C31*C32 -> 356.24 | D36: 665.76 | E36: 592.8 | F36: 567.1 | G36: 487.725 | H36: 321.762 | I36: 430.68 | J36: 455 | K36: 415.95
A37: Profit - Yearly | B37: =B36+B34 -> 24.13 | C37: =C36+C34 -> 49.84 | D37: 334.69 | E37: 203.6 | F37: 157 | G37: 53.685 | H37: -83.218 | I37: 42.68 | J37: 89.58 | K37: 27.09
A38: Profit - Acumulating | B38: =B36+B34 -> 24.13 | C38: =C36+C34+B38 -> 73.97 | D38: =D36+D34+C38 -> 408.66 | E38: 612.26 | F38: 769.26 | G38: 822.945 | H38: 739.727 | I38: 782.407 | J38: 871.987 | K38: 899.077
A40: 3) Soybean yield and price received numbers were derived from the National Agricultural Statistics Service (NASS).
A41: 4) Expenses come from the University of Tennessee Field Crop Budgets for each respective year. These expenses have been adjusted to reflect a land cash rent price of $75.
A43: Copyright 2020
A44: Genera Inc. | K44: generainc.com/farmers
